Cogmind - Beta 17 @@@ ROGUE MODE // 2026.07.20 @ 20:12:45 Player: President Manblast Result: Destroyed by X-62 Marksman with Gauss Rifle Performance ------------- Evolutions (4) 2000 Regions Visited (13) 2600 Robots Destroyed (251) 1255 Value Destroyed (9675) 9675 Prototype IDs (31) 620 Alien Tech Used (0) 0 Bonus (4161) 4161 TOTAL SCORE: 20311 Bonus ------- High Alert Combat Kills 534 Follower Combat Kills 1653 Entered Garrisons 200 Used RIF Installer 500 Network Hubs Disabled 400 Built Enhanced Grunts 300 A7 Reached Mainframe 300 Met R17 at Cetus 500 Friendly Fire -226 Cogmind --------- Core Integrity 0/850 Matter 189/300 Energy 100/100 System Corruption 10% Temperature Cool (0) Movement Core (1400) Ox27 Location -6/Hub_04(d) Parts ------- > --- POWER (1) -------- (None) > --- PROPULSION (2) --- (None) > --- UTILITY (9) ------ Huge Storage Unit Advanced Signal Interpreter Improved Targeting Computer Core Analyzer Relay Coupler [NC] (3) > --- WEAPON (3) ------- Phasing Sabre > --- INVENTORY (25) --- Neutrino Core Armored Huge Wheel Advanced Heat Sink Energy Well (350) Advanced Sensor Array Advanced Terrain Scan Processor Centrium Medium Armor Plating Centrium Medium Armor Plating Focal Shield Relay Coupler [Sentry] (18) Relay Coupler [Demolisher] (18) Heavy Laser Cooled Pulse Rifle Cooled Pulse Rifle Beamcaster Beamcaster Improved Heavy Machine Gun Improved Heavy Machine Gun Improved Proton Missile Launcher Precision Rocket Launcher Remote Datajack Peak State ------------ > --- POWER ------------ Quantum Reactor > --- PROPULSION ------- Armored Huge Wheel > --- UTILITY ---------- Huge Storage Unit Energy Well Trap Scanner Advanced Signal Interpreter Advanced Targeting Computer Core Analyzer Improved Heavy Armor Plating Improved System Restoration Module > --- WEAPON ----------- Wave Gun Heavy Beamcaster Heavy Beamcaster > --- INVENTORY -------- Neutrino Core Compact Wheel Armored Huge Wheel Advanced Heat Sink Improved Cooling System Coolant Injector Advanced Sensor Array Advanced Terrain Scan Processor Phase Shifter Centrium Medium Armor Plating Centrium Medium Armor Plating Centrium Medium Armor Plating Centrium Medium Armor Plating Cooled Pulse Rifle Wave Gun Heavy Beamcaster Heavy Plasma Cannon Heavy Plasma Cannon Heavy Machine Gun Improved Proton Missile Launcher Precision Grenade Launcher Remote Datajack Plasma Cutter Phasing Sabre [Rating: 84] Favorites ----------- Power Improved Ion Engine Engine Improved Ion Engine Power Core Light Nuclear Core Reactor Quantum Reactor Propulsion Armored Wheel Treads Light Treads Wheel Armored Wheel Utility Huge Storage Unit Device Improved Cooling System Storage Huge Storage Unit Processor Improved Targeting Computer Hackware Relay Coupler [NC] Protection Hardened Light Armor Plating Weapon Gatling Laser Energy Gun Gatling Laser Energy Cannon Cooled Particle Cannon Ballistic Gun Improved Assault Rifle Ballistic Cannon Advanced Assault Cannon Launcher Improved Proton Missile Launcher Special Weapon Remote Datajack Impact Weapon Heavy Hammer Slashing Weapon Scythe Special Melee Weapon Improved Datajack Build | -11 -10 -9 -9 -9 -9 -7 -7 -7 -6 -6 -6 -6 -6 ------- Run | Yrd Mat Mat Sto Gar Rec Fac Low Low Fac Ext Cet Arc Hub Slots Evolved 8 | . . 2 . . . 4 . . 2 . . . . Power . | . . . . . . . . . . . . . . Propulsion . | . . . . . . . . . . . . . . Utility 7 | . . 2 . . . 3 . . 2 . . . . Weapon 1 | . . . . . . 1 . . . . . . . Parts Attached 220 | 7 9 13 21 8 7 81 5 1 27 15 3 5 18 Power 20 | 1 1 2 2 . . 7 . . 3 2 . 2 . Engine 11 | 1 1 2 2 . . 3 . . 2 . . . . Core 7 | . . . . . . 4 . . . 2 . 1 . Reactor 2 | . . . . . . . . . 1 . . 1 . Propulsion 35 | 2 2 3 8 4 . 10 1 . 1 . . . 4 Treads 17 | 2 2 3 8 2 . . . . . . . . . Leg . | . . . . . . . . . . . . . . Wheel 18 | . . . . 2 . 10 1 . 1 . . . 4 Hover . | . . . . . . . . . . . . . . Flight . | . . . . . . . . . . . . . . Utility 98 | 2 2 4 5 3 5 40 2 1 14 8 2 1 9 Device 38 | 1 1 . 1 . 2 17 1 1 7 2 . 1 4 Storage 7 | 1 1 . . 1 1 2 . . . . 1 . . Processor 9 | . . 1 . . . 2 1 . 3 . . . 2 Hackware 13 | . . . . . 1 9 . . 2 . . . 1 Protection 31 | . . 3 4 2 1 10 . . 2 6 1 . 2 Artifact . | . . . . . . . . . . . . . . Weapon 67 | 2 4 4 6 1 2 24 2 . 9 5 1 2 5 Energy Gun 35 | 2 1 . 1 . 2 14 1 . 5 5 . 2 2 Energy Cannon 4 | . 2 . . . . 1 . . 1 . . . . Ballistic Gun 11 | . . 2 4 . . 2 . . 2 . . . 1 Ballistic Cannon 3 | . . . . . . 3 . . . . . . . Launcher 4 | . . . . 1 . . 1 . . . 1 . 1 Special Weapon 4 | . 1 . . . . 3 . . . . . . . Impact Weapon 1 | . . . 1 . . . . . . . . . . Slashing Weapon 2 | . . . . . . 1 . . . . . . 1 Piercing Weapon . | . . . . . . . . . . . . . . Special Melee Weapon 3 | . . 2 . . . . . . 1 . . . . Unidentified Prototypes 7 | . . . 2 . . 2 . . 1 . 1 . 1 Corrupted Parts 2 | . . . . . . 1 . . . . . 1 . System Corruption 6 | . . . . . . 1 . . . . . 5 . Parts Lost 60 | . . . 3 5 . 21 4 . 11 1 1 . 14 Power 7 | . . . 1 . . 3 . . 1 1 . . 1 Propulsion 7 | . . . . . . 4 1 . 1 . . . 1 Utility 34 | . . . 1 5 . 11 2 . 6 . 1 . 8 Weapon 12 | . . . 1 . . 3 1 . 3 . . . 4 Highest Loss Streak 10 | . . . 2 2 . 4 2 . 5 1 1 . 10 To Critical Strikes . | . . . . . . . . . . . . . . Average Backups 20 | 6 14 14 14 16 23 23 18 22 22 22 23 23 23 Power 1 | . 1 1 1 . 1 1 1 1 1 . 1 1 1 Propulsion 2 | 3 5 3 3 2 . 1 1 1 1 2 2 2 1 Utility 7 | . 1 2 2 4 10 10 8 8 7 7 8 9 10 Weapon 7 | 1 6 7 6 7 9 7 6 6 9 9 10 9 8 Tool/Special . | . . . . . . . . . . . . . . Unused Backups 68 | . 8 7 1 1 4 14 . . 13 4 2 1 13 Power 6 | . 1 1 . 1 . . . . 2 . 1 . . Propulsion 13 | . 5 3 . . 2 2 . . . . . . 1 Utility 18 | . . . . . 2 4 . . 4 1 1 . 6 Weapon 26 | . 2 3 1 . . 7 . . 3 3 . 1 6 Tool/Special 5 | . . . . . . 1 . . 4 . . . . Average Slot Usage (%) 95 | . 100 98 99 98 99 99 92 92 92 92 86 84 89 Engine 5 | . 14 11 11 11 11 3 . . 3 1 . . . Core 2 | . . . . . . 3 7 7 . 4 6 3 . Treads 4 | . 28 22 22 9 . . . . . . . . . Wheel 9 | . . . . 12 22 14 7 7 5 6 6 6 8 Device 17 | . 14 16 10 9 4 21 22 23 23 18 13 13 16 Storage 9 | . 14 11 11 12 22 7 7 7 6 6 12 13 6 Processor 11 | . . 5 11 11 11 7 14 15 16 20 20 20 20 Hackware 3 | . . . . . . 6 . . 5 2 . . 3 Protection 7 | . . 10 11 10 5 8 7 7 6 11 6 6 6 Energy Gun 11 | . 12 3 . . 1 12 15 15 14 19 19 18 14 Energy Cannon 1 | . 11 3 . . . 1 . . . . . . . Ballistic Gun 3 | . . 15 19 20 2 1 . . . . . . . Ballistic Cannon 1 | . . . . . . 1 6 6 . . . . . Special Weapon 1 | . 3 . . . . 2 . . 3 . . . 2 Peak Build Rating 84 | 7 11 20 24 22 24 49 50 53 67 75 78 84 83 Average Rating 43 | 5 9 16 19 20 22 40 48 50 59 69 76 79 76 On Entrance 39 | . 7 11 20 20 20 24 46 49 53 66 75 78 83 Avg Prop Armor Cover (%) . | . . . . . . . . . . . . . . Naked Turns . | . . . . . . . . . . . . . . Heaviest Build 139 | 14 33 40 42 113 123 115 113 108 121 123 129 139 135 Greatest Support 55 | 40 40 43 55 43 24 28 28 28 28 28 28 28 28 Greatest Overweight (x) 9 | . . . 1 4 5 9 4 3 4 4 4 4 5 Average Overweight (x) 3 | . . . . 2 3 4 3 3 3 3 4 4 4 Largest Inventory Capacity 25 | 8 15 15 15 25 25 25 25 25 25 25 25 25 25 Average Capacity 22 | 7 14 15 15 20 25 25 25 25 25 25 25 25 25 Most Carried 25 | 8 15 15 15 22 25 25 25 25 25 25 25 25 25 Average Carried 21 | 6 14 14 14 16 23 23 19 23 23 24 24 24 24 Final Capacity 25 | 8 15 15 15 25 25 25 25 25 25 25 25 25 25 Final Carried 25 | 8 15 15 15 22 24 25 19 25 24 25 25 25 22 Class Distribution -------------------- 26% | Mutant 17% | Gunner 9% | Skirmisher 8% | Commander-Gunner 6% | Tank 6% | Commander-Skirmisher 5% | Bothacker-Mutant 5% | Scavenger-Gunner 5% | Bothacker-Gunner 4% | Scavenger-Mutant Dominant Class ---------------- Mutant | -10/Materials Mutant | -9/Materials Mutant | -9/Storage Mutant | -9/Garrison Bothacker-Mutant | -9/Recycling Gunner | -7/Factory Skirmisher | -7/Lower Caves Skirmisher | -7/Lower Caves Gunner | -6/Factory Commander-Skirmisher | -6/Extension Commander-Gunner | -6/Cetus Commander-Gunner | -6/Archives Commander-Gunner | -6/Hub_04(d) Resources | -11 -10 -9 -9 -9 -9 -7 -7 -7 -6 -6 -6 -6 -6 ----------- Run | Yrd Mat Mat Sto Gar Rec Fac Low Low Fac Ext Cet Arc Hub Matter Collected 6538 | 270 110 325 689 501 162 2090 446 108 765 451 169 100 352 Remotely . | . . . . . . . . . . . . . . Salvage Created 11563 | 134 557 996 875 721 223 2342 203 83 1888 1607 703 148 1083 Parts 518 | 12 30 51 65 56 5 107 14 3 56 48 23 7 41 Haulers Intercepted 8 | . 2 3 2 . . . . . . . . . 1 Recyclers Shooed 10 | . . . . . 1 1 . . 8 . . . . Parts Field Recycled . | . . . . . . . . . . . . . . Retrieved Matter . | . . . . . . . . . . . . . . Parts Self-Destructed 16 | . . . . . . . 14 2 . . . . . Prevented 4 | . . . . . . . 4 . . . . . . Parts Restored . | . . . . . . . . . . . . . . Kills | -11 -10 -9 -9 -9 -9 -7 -7 -7 -6 -6 -6 -6 -6 ------- Run | Yrd Mat Mat Sto Gar Rec Fac Low Low Fac Ext Cet Arc Hub Combat Hostiles Destroyed 188 | . 10 18 21 24 1 42 10 4 18 18 8 2 12 Guns 129 | . 8 12 21 22 1 28 2 . 11 16 . 2 6 Cannons 16 | . 1 6 . . . 6 2 . 1 . . . . AOE 26 | . . . . 2 . 5 6 4 4 . . . 5 Classes Destroyed 16 | 2 4 1 1 . . 4 . . . 3 . . 1 Worker 4 | . . . 1 . . 1 . . . . . . 2 Builder 6 | . . . . . . 4 . . . 1 . . 1 Tunneler 9 | 4 . . . . . 2 . . 3 . . . . Hauler 8 | . 2 3 2 . . . . . . . . . 1 Recycler 26 | 1 1 2 . . 2 6 . . 10 3 . . 1 Operator 1 | . . . . . . . . . . 1 . . . Watcher 8 | . 2 2 . . . 1 . . . . 2 . 1 Swarmer 49 | . 3 6 7 12 . 4 6 4 7 . . . . Grunt 69 | . 7 7 7 8 . 18 4 . 6 6 . . 6 Brawler 4 | . . . . . . . . . . 3 . . 1 Duelist 1 | . . . . . . 1 . . . . . . . Sentry 36 | . . 5 7 4 1 6 . . 2 6 . 2 3 Specialist 1 | . . . . . . . . . . . . . 1 Hunter 4 | . . . . . . 1 . . . 2 . . 1 Programmer 15 | . . . . . . 12 . . 3 . . . . Behemoth 1 | . . . . . . . . . . 1 . . . Cetus Guard 8 | . . . . . . . . . . . 8 . . Decomposer 1 | . . . . . . . . 1 . . . . . Savage 1 | . . . . . . . . . . . . . 1 Best Kill Streak 8 | 3 5 3 7 7 2 5 5 4 8 4 5 2 7 Combat Bots Only 7 | . 3 3 6 7 1 5 5 4 4 3 4 2 5 Max Kills in Single Turn 4 | 1 2 2 2 2 2 3 3 3 1 2 1 1 4 Gunslinging 1 | . 1 1 1 1 . . . . . . . . . Exploded 3 | . . . . 1 . 3 3 3 1 . . . 3 Melee . | . . . . . . . . . . . . . . Uniques/NPCs Destroyed . | . . . . . . . . . . . . . . Combat | -11 -10 -9 -9 -9 -9 -7 -7 -7 -6 -6 -6 -6 -6 -------- Run | Yrd Mat Mat Sto Gar Rec Fac Low Low Fac Ext Cet Arc Hub Hostile Shots Fired 1176 | . 27 56 110 107 2 342 54 6 84 190 22 7 169 Missed 354 | . 8 20 25 27 . 100 17 3 33 76 10 2 33 Hits 822 | . 19 36 85 80 2 242 37 3 51 114 12 5 136 Melee 4 | . . . . . . 4 . . . . . . . Projectile 818 | . 19 36 85 80 2 238 37 3 51 114 12 5 136 AOE 2 | . . . . . . . . . . . . . 2 Critical Strikes 24 | . . 1 3 1 . 7 1 . 1 1 3 . 6 Damage Taken 12749 | . 178 403 976 1099 32 3811 550 44 1171 1131 186 108 3060 Core 1910 | . 56 37 122 210 17 475 142 . 138 105 26 . 582 Absorbed by Shields 373 | . . . . . . . . . . 226 147 . . Redirected to Shielding 18 | . . . . . . 7 . . 11 . . . . Ignored by Resistances 127 | . . . . . . 75 22 . . . . . 30 Regen/Repaired (Parts) 120 | . . . . . . 72 . . 48 . . . . Core Remaining (%) 47 | 100 77 . . . 3 . . 11 . . . . . Volleys Fired 621 | 12 45 52 65 49 5 173 17 9 80 57 9 6 42 Largest 3 | 2 2 2 2 2 2 3 3 1 3 3 3 3 3 Hottest 250 | 90 125 133 46 46 112 185 200 40 250 182 144 182 243 Shots Fired 1262 | 24 77 101 128 94 9 344 32 11 153 159 12 15 103 Gun 998 | 24 50 74 128 90 8 223 18 2 118 157 3 15 88 Cannon 135 | . 17 27 . . . 68 9 7 7 . . . . Launcher 36 | . . . . 4 1 4 5 2 3 . 9 . 8 Special 93 | . 10 . . . . 49 . . 25 2 . . 7 Kinetic 366 | . . 50 128 90 . 74 9 7 8 . . . . Thermal 778 | 24 77 51 . . 8 217 18 2 117 157 3 15 89 Explosive 13 | . . . . . . . 5 2 3 . . . 3 Electromagnetic 23 | . . . . 4 1 4 . . . . 9 . 5 Robot Hit Streak 41 | 6 23 32 26 28 7 23 8 3 41 38 4 6 15 Robot Miss Streak 4 | 2 3 3 2 2 1 3 2 1 4 1 1 2 3 Penetration Max . | . . . . . . . . . . . . . . Secondary Targets 18 | . 1 1 4 7 . . 1 . 1 2 . . 1 Max Gunslinging Chain 1 | . 1 1 1 1 . . 1 . 1 1 . . 1 Shots Hit Robots 965 | 17 48 77 99 72 17 263 22 2 122 139 7 10 70 Core Hits 522 | 6 22 33 36 30 3 151 20 4 90 58 13 6 50 Critical Kills 2 | . . . 1 1 . . . . . . . . . Critical Parts Destroyed 1 | . . 1 . . . . . . . . . . . Critical Strikes 35 | 4 3 3 1 1 . 4 . . 1 14 . . 4 Burn 32 | 4 3 2 . . . 4 . . 1 14 . . 4 Destroy 3 | . . 1 1 1 . . . . . . . . . Melee Attacks 71 | . . 6 3 4 22 20 . 3 4 . . . 9 Impact 29 | . . . 3 4 14 8 . . . . . . . Slashing 25 | . . . . . . 11 . 3 2 . . . 9 Piercing 2 | . . . . . . . . . 2 . . . . Sneak Attacks 18 | . . 5 . . 8 5 . . . . . . . Combat Hostiles . | . . . . . . . . . . . . . . Follow-up Attacks . | . . . . . . . . . . . . . . Damage Inflicted 21897 | 200 642 1203 1532 1190 454 5573 822 261 2912 2957 1051 261 2839 Guns 15651 | 200 467 855 1528 1083 106 3948 361 10 2319 2957 80 261 1476 Cannons 1710 | . 175 347 . . . 933 126 . 129 . . . . Explosions 3857 | . . . . 107 16 356 335 251 458 . 971 . 1363 Melee 663 | . . . . . 332 325 . . 6 . . . . Ramming 16 | . . 1 4 . . 11 . . . . . . . Kinetic 4543 | . . 586 1528 1083 . 1146 126 . 74 . . . . Thermal 13080 | 200 642 616 . . 106 3846 361 10 2374 2957 123 261 1584 Explosive 1866 | . . . . . . . 335 251 458 . . . 822 Electromagnetic 1729 | . . . . 107 16 245 . . . . 928 . 433 Impact 461 | . . . . . 332 129 . . . . . . . Slashing 196 | . . . . . . 196 . . . . . . . Piercing 6 | . . . . . . . . . 6 . . . . Highest Corruption 11 | . . . . . 1 11 11 11 1 1 1 5 10 Average Corruption 5 | . . . . . 1 5 11 11 1 1 1 1 6 Corruption Purged 10 | . . . . . . 4 . . . . . 6 . Corruption Blocked 6 | . . . . . . 6 . . . . . . . Effects 274 | . . . . . 3 171 35 33 3 18 3 5 3 Message Errors 66 | . . . . . . 47 7 6 . 4 . . 2 Matter Fused 59 | . . . . . 1 36 8 9 . 4 1 . . Heat Flow Errors 27 | . . . . . 1 17 3 3 . 2 . 1 . Energy Discharges 35 | . . . . . 1 13 6 7 1 3 2 2 . Parts Rejected 4 | . . . . . . 3 . . . . . 1 . Parts Fused 9 | . . . . . . 6 3 . . . . . . Data Loss (minor) 31 | . . . . . . 21 4 2 1 2 . 1 . Data Loss (major) 14 | . . . . . . 10 1 2 . . . . 1 Misfires 18 | . . . . . . 13 1 3 . 1 . . . Alerts 4 | . . . . . . 1 1 . 1 1 . . . Misdirections 2 | . . . . . . 2 . . . . . . . Weapon Failures 5 | . . . . . . 2 1 1 . 1 . . . Overload Shots 1 | . . . . . . . . . . . 1 . . Overflow Damage 462 | . . . . . 203 91 35 38 44 . . . 51 Projectiles 13 | . . . . . . 13 . . . . . . . Explosions 168 | . . . . . . . 35 38 44 . . . 51 Melee 281 | . . . . . 203 78 . . . . . . . Knockbacks 12 | . . . . . 1 10 1 . . . . . . Impact 2 | . . . . . 1 1 . . . . . . . Kinetic 10 | . . . . . . 9 1 . . . . . . Secondary . | . . . . . . . . . . . . . . Self-Inflicted Damage 179 | . . . . 155 . 5 7 . . . . . 12 Shots 3 | . . . . 1 . . 1 . . . . . 1 Rammed 4 | . . 1 1 . . 1 . . . . . . 1 Targets Rammed 4 | . . 1 1 . . 1 . . . . . . 1 Kicked . | . . . . . . . . . . . . . . Crushed . | . . . . . . . . . . . . . . Highest Temperature 378 | 90 216 270 26 24 246 314 378 219 173 225 . 199 108 Average Temperature 64 | 32 58 77 6 9 121 88 147 95 65 56 . 47 35 Received Heat Transfer 2824 | . 75 159 297 276 9 1065 189 . 153 320 17 . 264 Effects 6 | . . . . . . . 5 . . 1 . . . Shutdowns 1 | . . . . . . . 1 . . . . . . Energy Bleed 2 | . . . . . . . 1 . . 1 . . . Interference 3 | . . . . . . . 3 . . . . . . Siege Activations . | . . . . . . . . . . . . . . Martial Activations . | . . . . . . . . . . . . . . Shielding Activations . | . . . . . . . . . . . . . . Robots Disrupted 1 | . . . . . . . . . . . . . 1 Combat Hostiles 1 | . . . . . . . . . . . . . 1 Robots Corrupted 10 | . . . . . 1 1 . . . . 8 . . Combat Hostiles 8 | . . . . . . . . . . . 8 . . Parts Fried 15 | . . . . 2 2 1 . . . . 9 . 1 Impact Corruptions 6 | . . . . . 5 1 . . . . . . . Robots Melted 9 | . 1 . . . . 3 . . 2 2 . . 1 Combat Hostiles 9 | . 1 . . . . 3 . . 2 2 . . 1 Parts Melted 91 | 2 . 3 . . 1 31 1 . 17 26 1 1 8 Heat Transferred 28932 | 841 1842 1443 . . 259 7782 825 25 5321 7206 174 444 2770 Parts Sabotaged . | . . . . . . . . . . . . . . Parts Stolen . | . . . . . . . . . . . . . . Parts Stripped . | . . . . . . . . . . . . . . Power Chain Reactions 4 | . . . . . . 1 . . . . 1 . 2 Alert | -11 -10 -9 -9 -9 -9 -7 -7 -7 -6 -6 -6 -6 -6 ------- Run | Yrd Mat Mat Sto Gar Rec Fac Low Low Fac Ext Cet Arc Hub Maximum Alert Level 5 | . . 1 1 3 1 3 . . . 1 1 1 5 Low Security (%) 60 | 100 100 93 85 24 71 28 . . 100 81 30 77 19 Level 1 25 | . . 6 14 42 28 44 . . . 18 69 22 17 Level 2 7 | . . . . 23 . 17 . . . . . . 13 Level 3 4 | . . . . 8 . 8 . . . . . . 14 Level 4 1 | . . . . . . . . . . . . . 23 Level 5 . | . . . . . . . . . . . . . 11 High Security . | . . . . . . . . . . . . . . Max Security . | . . . . . . . . . . . . . . Peak Influence 1674 | 10 84 209 223 764 343 751 . . 159 371 310 252 1674 Initial 343 | . . . 57 115 343 154 . . 52 70 185 101 6 Average 220 | 1 16 123 138 367 126 300 . . 51 119 233 134 780 Influence Increases 9340 | 25 326 557 649 699 103 1699 260 90 675 902 360 191 2804 Destroy 0b10 Robot/C 4660 | . 200 360 420 480 20 900 200 80 360 460 160 80 940 Destroy 0b10 Robot/NC 370 | 25 25 35 15 . 15 75 . . 70 35 10 . 65 Destroy Leader 856 | . 48 80 114 20 . 232 30 10 82 42 . . 198 Allied During Kill 1638 | . . . . . . 9 . . 2 254 170 80 1123 Successful Hack 425 | . 28 47 35 . 29 110 . . 51 80 . . 45 Select Force Hacks 30 | . . . . . 30 . . . . . . . . Disable Machine 390 | . 15 . 45 . . 30 . . 60 15 15 30 180 Anti-Garrison Action 300 | . . . . 150 . . . . . . . . 150 Destroy Structure 236 | . 10 5 5 49 9 43 . . 20 1 5 1 88 Advance Influence 150 | . . . . . . 150 . . . . . . . Partial Spotted 30 | . . . 15 . . 15 . . . . . . . Lose Combat Pursuer 255 | . . 30 . . . 135 30 . 30 15 . . 15 Influence Decreases 7823 | 25 326 419 609 113 854 961 717 300 615 714 439 426 1305 Entered New Map 1327 | . . . 81 63 421 9 279 57 32 74 147 152 12 Time Decay 4898 | 25 283 409 498 . 433 642 398 243 468 510 262 254 473 Lost Part 585 | . . . 30 50 . 210 40 . 95 10 10 . 140 Lost Ally 520 | . . 10 . . . 100 . . 20 120 20 20 230 Purge Threat 493 | . 43 . . . . . . . . . . . 450 Squads Dispatched 45 | . 1 1 4 . . 20 . . 5 1 . . 13 Investigation 6 | . . . . . . 5 . . . . . . 1 Extermination 17 | . . . . . . 12 . . 3 . . . 2 Reinforcement 11 | . 1 1 . . . 1 . . 2 1 . . 5 Assault 6 | . . . . . . 2 . . . . . . 4 Garrison 5 | . . . 4 . . . . . . . . . 1 Intercept . | . . . . . . . . . . . . . . Searches Triggered . | . . . . . . . . . . . . . . Construction Impeded 1 | . . . . . . . . . . . . . 1 Haulers Reinforced 1 | . . . . . . . . . 1 . . . . Active Scanning Responses . | . . . . . . . . . . . . . . Cargo Convoy Interrupts . | . . . . . . . . . . . . . . Stealth | -11 -10 -9 -9 -9 -9 -7 -7 -7 -6 -6 -6 -6 -6 --------- Run | Yrd Mat Mat Sto Gar Rec Fac Low Low Fac Ext Cet Arc Hub Distress Signals 9 | . 1 2 1 . . 2 . . . . 2 . 1 Communications Jammed 7 | . . . . . . 7 . . . . . . . Distress Signals 7 | . . . . . . 7 . . . . . . . Times Spotted 311 | . 15 25 25 23 2 81 12 4 27 25 9 7 56 Peak Tracking Total 9 | . 4 4 4 6 1 8 4 4 5 5 5 2 9 Tactical Retreats 11 | . . 2 . . . 4 1 . 2 1 . . 1 Traps | -11 -10 -9 -9 -9 -9 -7 -7 -7 -6 -6 -6 -6 -6 ------- Run | Yrd Mat Mat Sto Gar Rec Fac Low Low Fac Ext Cet Arc Hub Traps Triggered 7 | . . . 2 2 . 2 . . 1 . . . . Indirectly . | . . . . . . . . . . . . . . Trap Hack Attempts . | . . . . . . . . . . . . . . Triggered . | . . . . . . . . . . . . . . Disarmed . | . . . . . . . . . . . . . . Reprogrammed . | . . . . . . . . . . . . . . Reused . | . . . . . . . . . . . . . . Traps Extracted . | . . . . . . . . . . . . . . Installed . | . . . . . . . . . . . . . . Triggered . | . . . . . . . . . . . . . . Machines | -11 -10 -9 -9 -9 -9 -7 -7 -7 -6 -6 -6 -6 -6 ---------- Run | Yrd Mat Mat Sto Gar Rec Fac Low Low Fac Ext Cet Arc Hub Machines Disabled 32 | . 1 . 3 4 . 2 . . 4 2 1 2 13 Max in Single Turn 2 | . 1 . 1 2 . 1 . . 2 1 1 1 2 Garrison Access 7 | . . . . . . 3 . . 2 . . . 2 Garrison Relay 2 | . . . . 2 . . . . . . . . . Phase Generator 1 | . . . . 1 . . . . . . . . . Network Hub 2 | . . . . . . . . . . . . . 2 Machines Repaired . | . . . . . . . . . . . . . . Machines Dismantled 4 | . . . . . . 1 . . . . 1 . 2 Machines Sabotaged . | . . . . . . . . . . . . . . Overloaded Fab Kills . | . . . . . . . . . . . . . . Hacking | -11 -10 -9 -9 -9 -9 -7 -7 -7 -6 -6 -6 -6 -6 --------- Run | Yrd Mat Mat Sto Gar Rec Fac Low Low Fac Ext Cet Arc Hub Machines Accessed 100 | . 9 6 10 3 8 28 . 1 12 13 1 . 9 Terminals 67 | . 6 5 7 3 6 14 . . 4 13 1 . 8 Fabricators 8 | . . . . . . 6 . . 2 . . . . Repair Stations 5 | . 1 . 1 . . 2 . . 1 . . . . Recycling Units 9 | . 2 . 1 . 2 2 . . 2 . . . . Scanalyzers 3 | . . 1 . . . 1 . . 1 . . . . Garrison Access 7 | . . . 1 . . 3 . . 2 . . . 1 Total Hacks 246 | . 29 17 21 6 31 68 . 1 27 24 2 . 20 Successful 143 | . 24 11 12 2 16 40 . 1 14 13 . . 10 Failed 103 | . 5 6 9 4 15 28 . . 13 11 2 . 10 Catastrophic 20 | . . . . 1 4 6 . . 4 1 2 . 2 Database Lockouts . | . . . . . . . . . . . . . . Manual 85 | . 13 4 9 . 12 22 . . 11 3 1 . 10 Terminals 175 | . 22 14 15 6 25 37 . . 12 24 2 . 18 Fabricators 17 | . . . . . . 13 . . 4 . . . . Repair Stations 14 | . 1 . 3 . . 8 . . 2 . . . . Recycling Units 21 | . 6 . 2 . 6 4 . . 3 . . . . Scanalyzers 7 | . . 3 . . . 2 . . 2 . . . . Garrison Access 11 | . . . 1 . . 4 . . 4 . . . 2 Terminal Hacks 70 | . 13 5 6 2 11 13 . 1 2 11 . . 6 Part Schematic 6 | . . . . . 2 2 . . . 2 . . . Robot Schematic 2 | . . . . . 1 1 . . . . . . . Prototype ID Bank 10 | . 1 1 . . 2 3 . . . 1 . . 2 Open Door 12 | . . . 3 . . . . 1 . 8 . . . Branch Access Points 4 | . 1 1 . . 1 1 . . . . . . . Emergency Access Points 3 | . 1 . . 1 . . . . . . . . 1 Terminal Index 5 | . 1 1 1 . . 1 . . . . . . 1 Alert Level 1 | . . . . . 1 . . . . . . . . Unreport Threat 3 | . 1 . . . . . . . . . . . 2 Locate Traps 9 | . 3 1 1 . . 3 . . 1 . . . . Dispatch Records 1 | . 1 . . . . . . . . . . . . Maintenance Status 1 | . 1 . . . . . . . . . . . . Security Status 1 | . 1 . . . . . . . . . . . . Patrol Status 1 | . 1 . . . . . . . . . . . . Recall Reinforcements 1 | . . . . . . . . . 1 . . . . Hauler Manifests 2 | . . 1 . . 1 . . . . . . . . Zone Layout 7 | . 1 . 1 . 3 2 . . . . . . . Security Stations 1 | . . . . 1 . . . . . . . . . Fabricator Hacks 11 | . . . . . . 10 . . 1 . . . . Network Status 2 | . . . . . . 1 . . 1 . . . . Load Schematic 5 | . . . . . . 5 . . . . . . . Build 4 | . . . . . . 4 . . . . . . . Repair Station Hacks 7 | . . . 1 . . 4 . . 2 . . . . Scan Component 4 | . . . 1 . . 2 . . 1 . . . . Repair 3 | . . . . . . 2 . . 1 . . . . Recycling Unit Hacks 5 | . 2 . . . 2 . . . 1 . . . . Report Inventory 3 | . 2 . . . 1 . . . . . . . . Retrieve Components 2 | . . . . . 1 . . . 1 . . . . Scanalyzer 6 | . . 3 . . . 2 . . 1 . . . . Insert Component 1 | . . . . . . 1 . . . . . . . Analyze 1 | . . . . . . 1 . . . . . . . Retrieve Study 4 | . . 3 . . . . . . 1 . . . . Garrison Access Hacks 11 | . . . 1 . . 4 . . 4 . . . 2 Unlock Access 1 | . . . 1 . . . . . . . . . . Seal Access 6 | . . . . . . 3 . . 2 . . . 1 Coupler Status 4 | . . . . . . 1 . . 2 . . . 1 Unauthorized Hacks 33 | . 9 3 4 . 3 7 . . 3 2 . . 2 Terminals 20 | . 5 3 3 . 2 2 . . 1 2 . . 2 Track 1 | . 1 . . . . . . . . . . . . Assimilate 1 | . 1 . . . . . . . . . . . . Botnet 14 | . 2 2 2 . 2 2 . . 1 1 . . 2 Operators 4 | . 1 1 1 . . . . . . 1 . . . Fabricators 3 | . . . . . . 2 . . 1 . . . . Haulers 2 | . . . . . . 1 . . 1 . . . . Recompile 1 | . . . . . . 1 . . . . . . . Repair Stations 2 | . 1 . . . . 1 . . . . . . . Mechanics 2 | . 1 . . . . 1 . . . . . . . Recycling Units 8 | . 3 . 1 . 1 2 . . 1 . . . . Reject 3 | . 2 . . . . 1 . . . . . . . Recyclers 4 | . 1 . 1 . . 1 . . 1 . . . . Tunnel 1 | . . . . . 1 . . . . . . . . Scanalyzers . | . . . . . . . . . . . . . . Garrison Access . | . . . . . . . . . . . . . . Data Cores Recovered . | . . . . . . . . . . . . . . Used . | . . . . . . . . . . . . . . Hacking Detections 82 | . 6 6 8 3 8 23 . . 10 8 1 . 9 Full Trace Events 7 | . . . . . 2 4 . . . . . . 1 Feedback Events 3 | . . . . . 1 2 . . . . . . . Corruption 3 | . . . . . 1 2 . . . . . . . Feedback Blocked . | . . . . . . . . . . . . . . Robot Schematics Acquired 2 | . . . . . 1 1 . . . . . . . Robots Built 9 | . . . . . . 9 . . . . . . . Authchips 3 | . . . . . . 3 . . . . . . . Time 183 | . . . . . . 183 . . . . . . . Total Robot Build Rating 11 | . . . . . . 11 . . . . . . . Part Schematics Acquired 7 | . . . . . 2 3 . . . 2 . . . Parts Built 2 | . . . . . . 2 . . . . . . . Authchips 1 | . . . . . . 1 . . . . . . . Time 42 | . . . . . . 42 . . . . . . . Total Part Build Rating 8 | . . . . . . 8 . . . . . . . Part Studies Acquired 3 | . . 2 . . . . . . 1 . . . . Parts Repaired 3 | . . . . . . 2 . . 1 . . . . Time 135 | . . . . . . 105 . . 30 . . . . Parts Recycled . | . . . . . . . . . . . . . . Recycled Matter . | . . . . . . . . . . . . . . Retrieved Matter . | . . . . . . . . . . . . . . Retrieved Components 12 | . . . . . 3 . . . 9 . . . . Parts Scanalyzed 1 | . . . . . . 1 . . . . . . . Part Schematics Acquired 1 | . . . . . . 1 . . . . . . . Parts Damaged . | . . . . . . . . . . . . . . Bothacking | -11 -10 -9 -9 -9 -9 -7 -7 -7 -6 -6 -6 -6 -6 ------------ Run | Yrd Mat Mat Sto Gar Rec Fac Low Low Fac Ext Cet Arc Hub Used RIF Installer 1 | . . . . 1 . . . . . . . . . Robots Hacked 53 | . . 3 . . 4 27 . . 15 2 . . 2 Non-combat 45 | . . 3 . . 3 22 . . 14 1 . . 2 Combat 8 | . . . . . 1 5 . . 1 1 . . . Robot Hacks Applied 67 | . . 5 . . 6 32 . . 19 2 . . 3 parse_system 6 | . . 2 . . . . . . 3 1 . . . no_distress 3 | . . 1 . . 2 . . . . . . . . find_chute 8 | . . . . . . 6 . . 2 . . . . ignore_repairs 7 | . . . . . . 3 . . 4 . . . . map_walls 2 | . . . . . . 2 . . . . . . . map_earth 1 | . . . . . . 1 . . . . . . . find_fabricator 1 | . . . . . . . . . 1 . . . . drop_inventory 7 | . . . . . . 4 . . 1 1 . . 1 find_recycling 5 | . . 1 . . 1 1 . . 2 . . . . ignore_parts 4 | . . . . . 2 1 . . 1 . . . . find_station 3 | . . 1 . . . 1 . . 1 . . . . purge_threat 1 | . . . . . . . . . . . . . 1 block_reporting 2 | . . . . . . 1 . . . . . . 1 mark_security 4 | . . . . . . 3 . . 1 . . . . find_garrison 1 | . . . . . . 1 . . . . . . . disrupt_area 1 | . . . . . . 1 . . . . . . . wipe_record 1 | . . . . . 1 . . . . . . . . overwrite_iff 1 | . . . . . . 1 . . . . . . . formatsys_low 5 | . . . . . . 3 . . 2 . . . . formatsys_high 4 | . . . . . . 3 . . 1 . . . . Relay Couplers Released 17 | . . . . 7 . 3 . . 1 . . . 6 Machine Destruction 17 | . . . . 7 . 3 . . 1 . . . 6 Attached 9 | . . . . . 1 5 . . 2 . . . 1 Fabnet Peak Effective % . | . . . . . . . . . . . . . . Robots Rewired 10 | . . . . . . . . . . 10 . . . Allies Hacked . | . . . . . . . . . . . . . . Hacks Repelled . | . . . . . . . . . . . . . . Allies | -11 -10 -9 -9 -9 -9 -7 -7 -7 -6 -6 -6 -6 -6 -------- Run | Yrd Mat Mat Sto Gar Rec Fac Low Low Fac Ext Cet Arc Hub Total Allies 44 | . 1 . . . . 16 . . 3 19 5 . . Largest Group 18 | . 1 1 . . . 8 . . 2 14 18 18 16 Highest-Rated Group 944 | . 10 10 . . . 81 . . 55 513 944 944 774 Highest-Rated Ally 159 | . 10 10 . . . 34 . . 32 159 152 152 96 Total Orders 8 | . . . . . . . . . 4 4 . . . STAY 3 | . . . . . . . . . 1 2 . . . FOLLOW 3 | . . . . . . . . . 1 2 . . . AID 2 | . . . . . . . . . 2 . . . . Ally Attacks 362 | . . . . . . 31 . . 5 73 19 14 220 Total Damage 10295 | . . . . . . 711 . . 192 1763 430 355 6844 Kills 62 | . . . . . . 6 . . 2 7 . 2 45 Allies Corrupted . | . . . . . . . . . . . . . . Allies Melted 1 | . . . . . . . . . . 1 . . . Intel | -11 -10 -9 -9 -9 -9 -7 -7 -7 -6 -6 -6 -6 -6 ------- Run | Yrd Mat Mat Sto Gar Rec Fac Low Low Fac Ext Cet Arc Hub Active Infowar (turns) 19750 | 67 1586 1064 1306 716 485 5769 890 809 2702 1947 579 545 1285 Sensors 4941 | . . . . . 485 304 890 809 147 1056 . 2 1248 Traps 5225 | . . . . . . . . . 1683 1947 579 545 471 Seismic 11743 | 67 1586 1064 1306 716 . 4833 . . 2171 . . . . Jamming 3530 | . . . . . . 2264 . . 1266 . . . . Robot Analysis Total . | . . . . . . . . . . . . . . Derelict Logs Recovered 2 | . . . . . . . 1 1 . . . . . Drone Launches . | . . . . . . . . . . . . . . Drone Recoveries . | . . . . . . . . . . . . . . Exploration | -11 -10 -9 -9 -9 -9 -7 -7 -7 -6 -6 -6 -6 -6 ------------- Run | Yrd Mat Mat Sto Gar Rec Fac Low Low Fac Ext Cet Arc Hub Turns Passed 21704 | 265 1638 1064 1324 872 1182 6470 956 813 2702 1947 579 545 1347 Spaces Moved 11039 | 131 784 438 547 426 740 3441 510 496 1425 992 216 251 642 Core 11 | 11 . . . . . . . . . . . . . Treads 2073 | 120 784 438 547 184 . . . . . . . . . Legs . | . . . . . . . . . . . . . . Wheels 8955 | . . . . 242 740 3441 510 496 1425 992 216 251 642 Hover . | . . . . . . . . . . . . . . Flight . | . . . . . . . . . . . . . . Fastest Speed 50 | 50 160 160 160 125 125 135 135 145 145 145 160 160 150 Average Speed 150 | 150 160 160 160 148 139 143 144 145 151 156 160 160 161 Slowest Speed 240 | 160 160 160 240 160 155 215 150 145 160 160 160 160 165 Overloaded Moves . | . . . . . . . . . . . . . . Propulsion Burnouts . | . . . . . . . . . . . . . . Robots Hopped . | . . . . . . . . . . . . . . Potential Cave-ins . | . . . . . . . . . . . . . . Cave-ins Triggered . | . . . . . . . . . . . . . . Exploration Rate (%) 63 | 5 96 55 59 57 93 63 66 47 29 84 77 94 57 Regions Visited 13 Branch Regions 8 Pre-discovered Areas 1 | . . . . . 1 . . . . . . . . Known Exits Taken 9 | . . 1 1 . . 1 1 1 1 1 1 1 . Unknown Exits Taken 3 | 1 1 . . . 1 . . . . . . . . Scrap Searched 3 | . . . . . . . 2 1 . . . . . Spaces Dug 54 | . 10 . 1 . 9 17 2 6 1 . . . 8 Terrain Destroyed 241 | . 10 . 1 71 9 27 41 21 20 . 5 . 36 Melee 35 | . . . 1 . 9 13 . 3 1 . . . 8 Projectile 26 | . 10 . . . . 9 3 3 1 . . . . AOE 180 | . . . . 71 . 5 38 15 18 . 5 . 28 Terrain Rammed . | . . . . . . . . . . . . . . Walls Destroyed . | . . . . . . . . . . . . . . Machines Disabled . | . . . . . . . . . . . . . . Actions | -11 -10 -9 -9 -9 -9 -7 -7 -7 -6 -6 -6 -6 -6 --------- Run | Yrd Mat Mat Sto Gar Rec Fac Low Low Fac Ext Cet Arc Hub Total 14777 | 171 1079 709 862 559 851 4594 696 577 1800 1265 422 382 810 Wait 2073 | 14 206 167 191 27 56 663 154 58 147 89 163 102 36 Move 11025 | 130 783 437 546 424 739 3440 509 495 1424 991 215 250 642 Hop . | . . . . . . . . . . . . . . Pick Up 191 | 8 16 11 4 15 8 57 1 6 35 9 8 4 9 Fast Attach 70 | 7 1 2 12 2 2 21 . 1 5 2 2 4 9 Attach 72 | . . 1 2 5 . 32 5 . 16 2 1 . 8 Detach 3 | . . . . 1 . . 1 . . . . . 1 Swap 288 | . 12 14 18 17 12 97 6 4 40 30 7 7 24 Drop 217 | . 16 18 20 7 7 61 3 1 32 20 8 9 15 Fire 621 | 12 45 52 65 49 5 173 17 9 80 57 9 6 42 Melee 71 | . . 6 3 4 22 20 . 3 4 . . . 9 Ram 3 | . . . . . . 2 . . . . . . 1 Kick . | . . . . . . . . . . . . . . Crush 2 | . . 1 1 . . . . . . . . . . Escape Stasis 8 | . . . . 8 . . . . . . . . . Rewire 65 | . . . . . . . . . . 65 . . . Trap . | . . . . . . . . . . . . . . Miscellaneous 68 | . . . . . . 28 . . 17 . 9 . 14 Route ------- -11/Scrapyard -10/Materials (discovered 6 exits: *Mat x3 / *Min x2 / [*Sub]) -9/Materials (discovered 5 exits: [*Mat] / Min x2 / *Sto x2) -9/Storage (discovered 2 exits: *Rec / Gar) -9/Garrison -9/Recycling -7/Factory (discovered 6 exits: *Fac x4 / *Low x2) -7/Lower Caves -7/Lower Caves (discovered 2 exits: *Fac / *Zio) -6/Factory (discovered 3 exits: *Fac / *Low / *Ext) -6/Extension (discovered 2 exits: *Fac / *Cet) -6/Cetus (discovered 2 exits: *Fac / *Arc) -6/Archives (discovered 3 exits: *Fac / *Hub x2) -6/Hub_04(d) (discovered 2 exits: *Fac x2) History --------- Turn | Location | Event 10 | -11/Scrapyard | Discovered new exit (range 15) 266 | -11/Scrapyard | Entered Materials 266 | -10/Materials | Discovered new exit (range 9) 314 | -10/Materials | Build established: Mutant 522 | -10/Materials | Discovered new exit (range 7) 637 | -10/Materials | Discovered new exit (range 6) 807 | -10/Materials | Discovered new exit (range 13) 1422 | -10/Materials | Discovered new exit (range 15) 1630 | -10/Materials | Identified exit to Mines 1763 | -10/Materials | Discovered new exit (range 16) 1904 | -10/Materials | Entered another Materials area 1904 | -9/Materials | Accompanied by 1 ally 1904 | -9/Materials | Evolved 2 slots: Utility x2 1946 | -9/Materials | Discovered new exit (range 16) 2248 | -9/Materials | Build established: Scavenger-Mutant 2557 | -9/Materials | Identified exit to Mines 2557 | -9/Materials | Identified exit to Storage 2592 | -9/Materials | Discovered new exit (range 13) 2625 | -9/Materials | Build established: Mutant 2968 | -9/Materials | Entered Storage 3229 | -9/Storage | Garrison activated, responded to threat 3293 | -9/Storage | Used back door to open Recycling access 3293 | -9/Storage | Discovered new exit (range 5) 3605 | -9/Storage | Garrison activated, responded to threat 4289 | -9/Storage | Identified exit to Garrison 4292 | -9/Storage | Entered Garrison 4348 | -9/Garrison | Triggered checkpoint 4490 | -9/Garrison | Triggered checkpoint 4496 | -9/Garrison | Core integrity fell below 50% 4629 | -9/Garrison | Installed Relay Interface Framework 4648 | -9/Garrison | Phase Generator disabled 4717 | -9/Garrison | Garrison Relay disabled 4928 | -9/Garrison | Triggered checkpoint 4980 | -9/Garrison | Destroyed 7 combat bots 4990 | -9/Garrison | Triggered checkpoint 5012 | -9/Garrison | Core integrity fell below 20% 5019 | -9/Garrison | Discovered new exit (range 10) 5043 | -9/Garrison | Learned Recycling security intel 5070 | -9/Garrison | Triggered checkpoint 5097 | -9/Garrison | Garrison Relay disabled 5164 | -9/Garrison | Entered Recycling 5165 | -9/Recycling | Met a Zionite searching for Scraptown 5373 | -9/Recycling | Build established: Bothacker-Mutant 5696 | -9/Recycling | Scanned before Scraplab entrance 6331 | -9/Recycling | Discovered new exit (range 9) 6346 | -9/Recycling | Entered Factory 6346 | -7/Factory | Evolved 4 slots: Utility x3, Weapon x1 6637 | -7/Factory | Build established: Bothacker-Gunner 7031 | -7/Factory | Discovered new exit (range 9) 7229 | -7/Factory | Build established: Scavenger-Gunner 8181 | -7/Factory | Discovered new exit (range 16) 8534 | -7/Factory | Build established: Bothacker-Gunner 8723 | -7/Factory | Fabricated Gatling Laser (x2) 9016 | -7/Factory | Lost 3 parts (1p1n1u) 9460 | -7/Factory | Build established: Gunner 9679 | -7/Factory | Fabricated S-10 Pest? 9711 | -7/Factory | Fabricated S-10 Pest (x4) 9829 | -7/Factory | Lost 4 parts (1n1u2w) 9829 | -7/Factory | Lost 8 allies 9889 | -7/Factory | Discovered new exit (range 11) 10089 | -7/Factory | Build established: Mutant 10261 | -7/Factory | Discovered new exit (range 11) 10479 | -7/Factory | Identified exit to Lower Caves 10486 | -7/Factory | Build established: Gunner 10591 | -7/Factory | Core integrity fell below 50% 10638 | -7/Factory | Watched by a mysterious "MATRIX" hacker 10824 | -7/Factory | Fabricated D-53 Grenadier (x1) 11003 | -7/Factory | Lost 3 allies 11546 | -7/Factory | First assault squad dispatched 11821 | -7/Factory | Discovered new exit (range 4) 11995 | -7/Factory | System corruption reached 10% 12358 | -7/Factory | Build established: Tank 12578 | -7/Factory | Repaired Gatling Laser 12640 | -7/Factory | Repaired Broken Imp. Cooling System 12816 | -7/Factory | Entered Lower Caves 12892 | -7/Lower Caves | Core integrity fell below 20% 13027 | -7/Lower Caves | Identified exit to Lower Caves 13158 | -7/Lower Caves | Build established: Skirmisher 13772 | -7/Lower Caves | Entered another Lower Caves area 13845 | -7/Lower Caves | Learned Factory garrison access intel 14110 | -7/Lower Caves | Discovered new exit (range 7) 14115 | -7/Lower Caves | Identified exit to Zion 14561 | -7/Lower Caves | Discovered new exit (range 11) 14584 | -7/Lower Caves | Identified exit to Factory 14585 | -7/Lower Caves | Entered Factory 14585 | -6/Factory | Evolved 2 slots: Utility x2 14586 | -6/Factory | Loaded intel: 4 garrison access locations 14881 | -6/Factory | Build established: Gunner 14942 | -6/Factory | Repaired Broken Gatling Laser 15538 | -6/Factory | Lost 5 parts (1p3u1w) 15793 | -6/Factory | Discovered new exit (range 10) 16727 | -6/Factory | Found Hvy. Insulated Plating 17045 | -6/Factory | Discovered new exit (range 13) 17060 | -6/Factory | Identified exit to Factory 17111 | -6/Factory | Lost 3 parts (1n1u1w) 17216 | -6/Factory | Identified exit to Lower Caves 17262 | -6/Factory | Discovered new exit (range 16) 17282 | -6/Factory | Identified exit to Extension 17287 | -6/Factory | Entered Extension 17287 | -6/Extension | Accompanied by 1 ally 17360 | -6/Extension | Rescued a captive Derelict 17362 | -6/Extension | Rescued a captive Derelict 17525 | -6/Extension | Rescued A7 17847 | -6/Extension | Build established: Commander-Skirmisher 18122 | -6/Extension | Spotted B-75 Beast 18143 | -6/Extension | Destroyed B-75 Beast 18154 | -6/Extension | Spotted B-75 Beast 18190 | -6/Extension | Allies destroyed B-75 Beast 18201 | -6/Extension | Lost 4 allies 18432 | -6/Extension | Build established: Tank 18569 | -6/Extension | Rescued a captive Derelict 18733 | -6/Extension | Rescued a captive Derelict 18787 | -6/Extension | Rescued a captive Derelict 18791 | -6/Extension | Rescued a captive Derelict 18827 | -6/Extension | Rescued a captive Derelict 18890 | -6/Extension | Rescued a captive Derelict 19023 | -6/Extension | Rescued a captive Derelict 19153 | -6/Extension | Discovered exit to Factory (range 10) 19155 | -6/Extension | Discovered new exit (range 6) 19178 | -6/Extension | Identified exit to Cetus 19234 | -6/Extension | Entered Cetus 19234 | -6/Cetus | Accompanied by 14 allies (A7) 19239 | -6/Cetus | Acquired a Cetus Manufacturing Module code from A7 19256 | -6/Cetus | Spotted Cetus Guard 19256 | -6/Cetus | Spotted Cetus Guard 19259 | -6/Cetus | Spotted Cetus Guard 19259 | -6/Cetus | Spotted Cetus Guard 19271 | -6/Cetus | Destroyed Cetus Guard 19272 | -6/Cetus | Destroyed Cetus Guard 19273 | -6/Cetus | Destroyed Cetus Guard 19274 | -6/Cetus | Destroyed Cetus Guard 19462 | -6/Cetus | Escorted A7 to Cetus Mainframe 19480 | -6/Cetus | Started Cetus Manufacturing Module 19505 | -6/Cetus | Manufactured an Enhanced Grunt 19530 | -6/Cetus | Manufactured an Enhanced Grunt 19537 | -6/Cetus | Build established: Commander-Gunner 19555 | -6/Cetus | Manufactured an Enhanced Grunt 19580 | -6/Cetus | Manufactured an Enhanced Grunt 19605 | -6/Cetus | Manufactured an Enhanced Grunt 19635 | -6/Cetus | Discovered new exit (range 15) 19666 | -6/Cetus | Spotted Cetus Guard 19666 | -6/Cetus | Spotted Cetus Guard 19670 | -6/Cetus | Destroyed Cetus Guard 19670 | -6/Cetus | Spotted Cetus Guard 19672 | -6/Cetus | Destroyed Cetus Guard 19673 | -6/Cetus | Spotted Cetus Guard 19674 | -6/Cetus | Destroyed Cetus Guard 19675 | -6/Cetus | Destroyed Cetus Guard 19686 | -6/Cetus | Discovered exit to Factory (range 15) 19694 | -6/Cetus | Met Revision 17 19760 | -6/Cetus | Identified exit to Archives 19813 | -6/Cetus | Entered Archives 19813 | -6/Archives | Accompanied by 18 allies (A7) 19818 | -6/Archives | Received a hacking code to weaken MAIN.C 19871 | -6/Archives | Discovered new exit (range 15) 19893 | -6/Archives | Identified exit to Hub_04(d) 19925 | -6/Archives | Discovered exit to Factory (range 16) 19969 | -6/Archives | Unable to access archive contents 19974 | -6/Archives | Discovered exit to Hub_04(d) (range 15) 20358 | -6/Archives | Entered Hub_04(d) 20358 | -6/Hub_04(d) | Accompanied by 16 allies 20604 | -6/Hub_04(d) | Discovered exit to Factory (range 15) 20637 | -6/Hub_04(d) | Garrison activated, responded to threat 20689 | -6/Hub_04(d) | Lost 3 allies 21029 | -6/Hub_04(d) | Discovered exit to Factory (range 15) 21408 | -6/Hub_04(d) | First assault squad dispatched 21510 | -6/Hub_04(d) | Lost 3 parts (2u1w) 21520 | -6/Hub_04(d) | Lost 7 allies 21520 | -6/Hub_04(d) | Network Hub disabled 21552 | -6/Hub_04(d) | Spotted Lightning 21582 | -6/Hub_04(d) | Network Hub disabled 21591 | -6/Hub_04(d) | Lost 3 allies 21635 | -6/Hub_04(d) | Spotted Lightning 21645 | -6/Hub_04(d) | Spotted Lightning 21645 | -6/Hub_04(d) | Spotted Lightning 21657 | -6/Hub_04(d) | Core integrity fell below 50% 21694 | -6/Hub_04(d) | System corruption reached 10% 21702 | -6/Hub_04(d) | Core integrity fell below 20% 21705 | -6/Hub_04(d) | Destroyed by X-62 Marksman with Gauss Rifle Last Messages --------------- 21689_ Acquired 1 matter. 21689_ Centrium Medium Armor Plating destroyed. 21689_ Knocked back. 21692_ EMDS Slug penetrates Control Node. 21693_ Penetrated by Slug. 21693_ Penetrated by EMDS Slug. 21695_ Penetrated by Slug. 21697_ Knocked back. 21698_ Penetrated by Slug. 21699_ Coolant Injector destroyed. 21699_ Penetrated by EMDS Slug. 21699_ Slug penetrates Wall. 21700_ Penetrated by EMDS Slug. 21701_ Penetrated by Slug. 21701_ Penetrated by EMDS Slug. 21701_ Centrium Medium Armor Plating destroyed. 21702_ Penetrated by Slug. 21704_ System corrupted: Substantial component data lost. 21704_ Penetrated by Slug. Map ----- +----------------------------------------------------+ | ?"""" """" # !%### #???" = %= %%%%/%[% | | ?"""" """" #""^^ = T## #??""###!## %#= !/ | | ??""" """" #"" ^ "% ### #??# !! | | ????" """" #"T !" ="## #### """ "%!% | | ?????? #"" !%* ## / / # " " " | | ?#######+###"" !%="## #### # " " | | = =### #############" # " | | ######## [%#?# ## ## " # | | ???############### [#?# ## #" " "## | | ???# ??# %#?# ## " "# " ##? | | ???# ! ## !### ## """ ## #?? | | ???# # #######/### """"" ######?? | | ???# + = % + """"""" #??????? | | ???# * # [ =%=! + """ " #??????? | | ???+ # =% #######+### " #??????? | | ???# ?## ### %%*## " #??????? | | ???# ??#= #?# ## #??????? | | ???# ???#%=#?# ## #??????? | | ???# ???#*%#?# " " ##########"####????? | | ???# ???##%=#?# " " " # ! ! #????? | | ???? ???# * ## " " " + +????? | | # #?########????# [ H;# # """ """ """ #????? | | #?????????????# %< ;x !! # #????? | | ###?????????????# ! ;; % !! ###+#####+###+#####? | | ????????????????## #;h h #?# #???# #= = ! #? | | ???????????????###= #?# h@ #?# #???# # #? | | ?????????????????#%[####x#;######=##### # ""T"" #? | | ?????????????????# % % = # """"" #? | | ?????????????????# i ###### # #? | | ?????????????????######/###;###### ##+####### | | ?????????????# " == % | | ?????????????# "####"/########## | | ?????????????# # !%[ #?? | | ?????????????? / "" *=%= #?? | | ?????????????? # """ #?? | | ??????????????? # ""G "" #?? | | ??????????????##################################?? | | | | | | | | | | | | | | | | | | | | | | | | | | | +----------------------------------------------------+ Best States ------------- Heat Dissipation 75 Coolant Potential 65 Energy Generation 25 Energy Capacity 700 Matter Stores 300 Matter Capacity 300 Sight Range 16 Robot Scan Range 16 Terrain Scan Density 10 Jamming Range 12 Corruption Block 8 Armor Coverage 600 Resistance: KI 20 Resistance: TH 10 Utility Shielding 66 Weapon Cycling 15 Phase Shifting 5 Evasion (%) 50 Targeting Accuracy 8 Core Analysis 6 Recoil Reduction 2 Energy Filtering 30 Particle Charging 15 Relay Coupler Types 3 Relay Coupler Value 53 Authchip Count 3 Item Schematics ----------------- Med. Armor Plating | -9/Recycling | Hacked Pulse Rifle | -9/Recycling | Hacked Power Sword | -7/Factory | Hacked Gatling Laser | -7/Factory | Scanalyzed Imp. Cooling System | -7/Factory | Hacked Centrium Wheel | -6/Extension | Hacked Lyr. Heavy Armor Plating | -6/Extension | Hacked Robot Schematics ------------------ S-10 Pest | -9/Recycling | Hacked D-53 Grenadier | -7/Factory | Hacked Fabricated ------------ Gatling Laser | x2 | -7/Factory | Authchip S-10 Pest | x4 | -7/Factory | Authchip S-10 Pest | x4 | -7/Factory | Authchip D-53 Grenadier | x1 | -7/Factory | Authchip Repaired ---------- Gatling Laser | 15% | -7/Factory Imp. Cooling System | 99% | -7/Factory | Broken Gatling Laser | 54% | -6/Factory | Broken Studied --------- Autogun | -9/Materials | Hacked Arm. Wheel | -9/Materials | Hacked Plasma Rifle | -6/Factory | Hacked Alien Tech Used ----------------- None Achievements -------------- Assimilation Complete Better Safe Than Exploded Error 47 Mindtrick My Command Is Your Wish Versatile Challenges ------------ None Game ------ Seed BoltPulsarTerrabomb Manual? 0 Play Time 04:27:27 Cumulative 147.3 hours Start 2026.07.20 @ 11:36:43 End 2026.07.20 @ 20:12:45 Sessions 3 Manual Loads 0 Difficulty Rogue Special Mode None Game No. 66 Rogue 65 Adventurer 1 Explorer 0 Win Type - Total 1 Types 1/0/0/0/0/0/0/0/0/0 Lore% 49 Gallery% 47 Achievement% 39 Wizard Run 0 Options --------- Layout 1 ASCII 0 Keyboard 0 Movement Numpad Keybinds 0 Fullscreen 1 Font 24/Smallcaps Map View 50x35 Zoom Use 0% Tactical HUD 1 Map Filters NONE Filters NONE Steam 1 RUN: 55c4cdc4-168a-46f5-bc10-68bf713fdf3b